{"text_format":"3","workbook":"xlsx","n_sheets":4,"sheets":["Pradžia","Vestuvių biudžetas","Drabužiai-Pokylis-Muzika-Nuotr","Dekoracijos-Gėlės-Dovanos-Trans"],"not_rendered":{"charts":1,"defined_names":22},"read":"whole","date_system":"1900"}

{"sheet":"Pradžia","index":0,"n_rows":7,"n_cols":2,"rows_kept":7}
[null,"APIE ŠĮ ŠABLONĄ"]
[null,"Naudoti šį šabloną norėdami stebėti savo vestuvių išlaidas."]
[null,"Įveskite įvairių kategorijų Numatomos išlaidos ir faktines išlaidos atskiruose darbalapiuose."]
[null,"Vestuvių biudžeto suvestinė ir diagrama atnaujinamos automatiškai."]
[null,"Pastaba. "]
[null,"Papildomos instrukcijos pateikiamos kiekvieno darbalapio A stulpelyje. Šis tekstas buvo specialiai paslėptas. Norėdami pašalinti tekstą, pasirinkite A stulpelį, tada pasirinkite Naikinti. Norėdami nebeslėpti teksto, pasirinkite A stulpelį, tada pakeiskite šrifto spalvą."]
[null,"Norėdami sužinoti daugiau apie lenteles, lentelėje paspauskite SHIFT, tada – F10, pasirinkite parinktį LENTELĖ, tada pasirinkite ALTERNATYVUS TEKSTAS."]

{"sheet":"Vestuvių biudžetas","index":1,"n_rows":19,"n_cols":6,"rows_kept":19,"merged":[[2,2,4,5],[18,2,42,5]]}
["Šiame darbalapyje skaičiuokite vestuvių biudžetas. Įveskite informaciją į lenteles, esančias darbalapiuose Drabužiai-Pokylis-Muzika-Nuotr ir Dekoracijos-Gėlės-Dovanos-Trans, kad atnaujintumėte santrauką ir diagramą šiame darbalapyje. Naudingi patarimai, kaip naudoti šį darbalapį, pateikti šio stulpelio langeliuose. Vestuvių data žyma yra langelyje C1.",null,"Vestuvių data:"]
["Langelyje C2 įveskite vestuvių data. Likusių dienų skaičius automatiškai apskaičiuojamas langelyje E2.",null,{"$f":"TODAY()+365","v":"2019-12-04"},"Likusių dienų skaičius:",{"$f":"C2-TODAY()","v":365}]
["Šio darbalapio pavadinimas yra langelyje C3. Kitas nurodymas yra langelyje A6.",null,"Vestuvių biudžeto suvestinė"]
[]
[]
["Biudžeto suvestinė lentelė, prasidedanti langelyje C6, yra automatiškai atnaujinama. Kitas nurodymas yra langelyje A19.",null,"KATEGORIJA","NUMATOMOS IŠLAIDOS","FAKTINĖS IŠLAIDOS","DAUGIAU / MAŽIAU NEI NUMATYTOS IŠLAIDOS"]
[null,null,"Drabužiai",{"$f":"Drabužiai_Iš_viso_numat","v":{"v":9490,"d":"9,490.00"}},{"$f":"Drabužiai_Iš_viso_fakt","v":{"v":9770,"d":"9,770.00"}},{"$f":"BiudžetoSuvestinė[[#This Row],[NUMATOMOS IŠLAIDOS]]-BiudžetoSuvestinė[[#This Row],[FAKTINĖS IŠLAIDOS]]","v":{"v":-280,"d":"-280.00"}}]
[null,null,"Pokylis",{"$f":"Pobūvis_Iš_viso_numat","v":{"v":1050,"d":"1,050.00"}},{"$f":"Pobūvis_Iš_viso_fakt","v":{"v":928,"d":"928.00"}},{"$f":"BiudžetoSuvestinė[[#This Row],[NUMATOMOS IŠLAIDOS]]-BiudžetoSuvestinė[[#This Row],[FAKTINĖS IŠLAIDOS]]","v":{"v":122,"d":"122.00"}}]
[null,null,"Muzika",{"$f":"Muzika_pramogos_Iš_viso_numat","v":{"v":600,"d":"600.00"}},{"$f":"Muzika_pramogos_Iš_viso_fakt","v":{"v":400,"d":"400.00"}},{"$f":"BiudžetoSuvestinė[[#This Row],[NUMATOMOS IŠLAIDOS]]-BiudžetoSuvestinė[[#This Row],[FAKTINĖS IŠLAIDOS]]","v":{"v":200,"d":"200.00"}}]
[null,null,"Spaudiniai",{"$f":"Spaudiniai__Iš_viso_numat","v":{"v":935,"d":"935.00"}},{"$f":"Spaudiniai__Iš_viso_fakt","v":{"v":870,"d":"870.00"}},{"$f":"BiudžetoSuvestinė[[#This Row],[NUMATOMOS IŠLAIDOS]]-BiudžetoSuvestinė[[#This Row],[FAKTINĖS IŠLAIDOS]]","v":{"v":65,"d":"65.00"}}]
[null,null,"Nuotraukos",{"$f":"Spaudiniai_Iš_viso_numat","v":{"v":1625,"d":"1,625.00"}},{"$f":"Spaudiniai_Iš_viso_fakt","v":{"v":1575,"d":"1,575.00"}},{"$f":"BiudžetoSuvestinė[[#This Row],[NUMATOMOS IŠLAIDOS]]-BiudžetoSuvestinė[[#This Row],[FAKTINĖS IŠLAIDOS]]","v":{"v":50,"d":"50.00"}}]
[null,null,"Dekoracijos",{"$f":"Dekoracijos_Iš_viso_numat","v":{"v":700,"d":"700.00"}},{"$f":"Dekoracijos_Iš_viso_fakt","v":{"v":720,"d":"720.00"}},{"$f":"BiudžetoSuvestinė[[#This Row],[NUMATOMOS IŠLAIDOS]]-BiudžetoSuvestinė[[#This Row],[FAKTINĖS IŠLAIDOS]]","v":{"v":-20,"d":"-20.00"}}]
[null,null,"Gėlės",{"$f":"Gėlės_Iš_viso_numat","v":{"v":900,"d":"900.00"}},{"$f":"Gėlės_Iš_viso_fakt","v":{"v":850,"d":"850.00"}},{"$f":"BiudžetoSuvestinė[[#This Row],[NUMATOMOS IŠLAIDOS]]-BiudžetoSuvestinė[[#This Row],[FAKTINĖS IŠLAIDOS]]","v":{"v":50,"d":"50.00"}}]
[null,null,"Dovanos",{"$f":"Dovanos_Iš_viso_numat","v":{"v":1345,"d":"1,345.00"}},{"$f":"Dovanos_Iš_viso_fakt","v":{"v":1075,"d":"1,075.00"}},{"$f":"BiudžetoSuvestinė[[#This Row],[NUMATOMOS IŠLAIDOS]]-BiudžetoSuvestinė[[#This Row],[FAKTINĖS IŠLAIDOS]]","v":{"v":270,"d":"270.00"}}]
[null,null,"Transportas",{"$f":"Transportas_Iš_viso_fakt","v":{"v":100,"d":"100.00"}},{"$f":"Transportas_Iš_viso_numat","v":{"v":165,"d":"165.00"}},{"$f":"BiudžetoSuvestinė[[#This Row],[NUMATOMOS IŠLAIDOS]]-BiudžetoSuvestinė[[#This Row],[FAKTINĖS IŠLAIDOS]]","v":{"v":-65,"d":"-65.00"}}]
[null,null,"Kita",{"$f":"Kitos_išlaidos_Iš_viso_numat","v":{"v":885,"d":"885.00"}},{"$f":"Kitos_išlaidos_Iš_viso_fakt","v":{"v":1021,"d":"1,021.00"}},{"$f":"BiudžetoSuvestinė[[#This Row],[NUMATOMOS IŠLAIDOS]]-BiudžetoSuvestinė[[#This Row],[FAKTINĖS IŠLAIDOS]]","v":{"v":-136,"d":"-136.00"}}]
[null,null,"Iš viso išlaidų",{"$f":"SUBTOTAL(109,BiudžetoSuvestinė[NUMATOMOS IŠLAIDOS])","v":{"v":17630,"d":"17,630.00"}},{"$f":"SUBTOTAL(109,BiudžetoSuvestinė[FAKTINĖS IŠLAIDOS])","v":{"v":17374,"d":"17,374.00"}},{"$f":"SUBTOTAL(109,BiudžetoSuvestinė[DAUGIAU / MAŽIAU NEI NUMATYTOS IŠLAIDOS])","v":{"v":256,"d":"256.00"}}]
["Skritulinė diagrama langelyje C19 atnaujinama automatiškai."]
[null,null,"Šiame langelyje yra skritulinė diagrama, rodanti kiekvienos kategorijos išlaidų procentą."]

{"sheet":"Drabužiai-Pokylis-Muzika-Nuotr","index":2,"n_rows":56,"n_cols":6,"rows_kept":56,"merged":[[16,1,16,4],[28,1,28,4],[29,1,29,4],[35,1,35,4],[48,1,48,4]]}
["Atitinkamose šio darbalapio lentelėse įveskite Numatomos išlaidos ir Faktinės išlaidos kiekvienos kategorija išlaidas. Daugiau ar mažiau nei numatytos išlaidos apskaičiuojamos automatiškai. Drabužiai žyma yra dešinėje esančiame langelyje. Naudingi patarimai, kaip naudoti šį darbalapį, pateikti šio stulpelio langeliuose. Paspauskite rodyklę žemyn, kad pradėtumėte.","Drabužiai",{"$nulls":3}," "]
[" Įveskite informaciją lentelėje Drabužiai, pradėdami nuo langelio dešinėje. Kitas nurodymas yra langelyje A18.","KATEGORIJA","NUMATOMOS IŠLAIDOS","FAKTINĖS IŠLAIDOS","DAUGIAU / MAŽIAU NEI NUMATYTOS IŠLAIDOS"," "]
[null,"Sužadėtuvių žiedas (-ai)",{"v":1500,"d":"1,500.00"},{"v":1500,"d":"1,500.00"},{"$f":"'Drabužiai-Pokylis-Muzika-Nuotr'!$C3-'Drabužiai-Pokylis-Muzika-Nuotr'!$D3","v":{"v":0,"d":"0.00"}}]
[null,"1 būsimo sutuoktinio žiedas",{"v":2000,"d":"2,000.00"},{"v":2300,"d":"2,300.00"},{"$f":"'Drabužiai-Pokylis-Muzika-Nuotr'!$C4-'Drabužiai-Pokylis-Muzika-Nuotr'!$D4","v":{"v":-300,"d":"-300.00 "}}]
[null,"1 būsimo sutuoktinio suknelė / kostiumas",{"v":3000,"d":"3,000.00"},{"v":2750,"d":"2,750.00"},{"$f":"'Drabužiai-Pokylis-Muzika-Nuotr'!$C5-'Drabužiai-Pokylis-Muzika-Nuotr'!$D5","v":{"v":250,"d":"250.00"}}]
[null,"1 būsimo sutuoktinio nuometas / galvos apdangalas",{"v":500,"d":"500.00"},{"v":500,"d":"500.00"},{"$f":"'Drabužiai-Pokylis-Muzika-Nuotr'!$C6-'Drabužiai-Pokylis-Muzika-Nuotr'!$D6","v":{"v":0,"d":"0.00"}}]
[null,"1 būsimo sutuoktinio batai",{"v":350,"d":"350.00"},{"v":300,"d":"300.00"},{"$f":"'Drabužiai-Pokylis-Muzika-Nuotr'!$C7-'Drabužiai-Pokylis-Muzika-Nuotr'!$D7","v":{"v":50,"d":"50.00"}}]
[null,"1 būsimo sutuoktinio papuošalai",{"v":400,"d":"400.00"},{"v":550,"d":"550.00"},{"$f":"'Drabužiai-Pokylis-Muzika-Nuotr'!$C8-'Drabužiai-Pokylis-Muzika-Nuotr'!$D8","v":{"v":-150,"d":"-150.00 "}}]
[null,"1 būsimo sutuoktinio kojinės",{"v":20,"d":"20.00"},{"v":20,"d":"20.00"},{"$f":"'Drabužiai-Pokylis-Muzika-Nuotr'!$C9-'Drabužiai-Pokylis-Muzika-Nuotr'!$D9","v":{"v":0,"d":"0.00"}}]
[null,"2 būsimo sutuoktinio žiedas",{"v":300,"d":"300.00"},{"v":250,"d":"250.00"},{"$f":"'Drabužiai-Pokylis-Muzika-Nuotr'!$C10-'Drabužiai-Pokylis-Muzika-Nuotr'!$D10","v":{"v":50,"d":"50.00"}}]
[null,"2 būsimo sutuoktinio suknelė / kostiumas",{"v":300,"d":"300.00"},{"v":350,"d":"350.00"},{"$f":"'Drabužiai-Pokylis-Muzika-Nuotr'!$C11-'Drabužiai-Pokylis-Muzika-Nuotr'!$D11","v":{"v":-50,"d":"-50.00 "}}]
[null,"2 būsimo sutuoktinio nuometas / galvos apdangalas",{"v":500,"d":"500.00"},{"v":500,"d":"500.00"},{"$f":"'Drabužiai-Pokylis-Muzika-Nuotr'!$C12-'Drabužiai-Pokylis-Muzika-Nuotr'!$D12","v":{"v":0,"d":"0.00"}}]
[null,"2 būsimo sutuoktinio batai",{"v":200,"d":"200.00"},{"v":175,"d":"175.00"},{"$f":"'Drabužiai-Pokylis-Muzika-Nuotr'!$C13-'Drabužiai-Pokylis-Muzika-Nuotr'!$D13","v":{"v":25,"d":"25.00"}}]
[null,"2 būsimo sutuoktinio papuošalai",{"v":400,"d":"400.00"},{"v":550,"d":"550.00"},{"$f":"'Drabužiai-Pokylis-Muzika-Nuotr'!$C14-'Drabužiai-Pokylis-Muzika-Nuotr'!$D14","v":{"v":-150,"d":"-150.00 "}}]
[null,"2 būsimo sutuoktinio kojinės",{"v":20,"d":"20.00"},{"v":25,"d":"25.00"},{"$f":"'Drabužiai-Pokylis-Muzika-Nuotr'!$C15-'Drabužiai-Pokylis-Muzika-Nuotr'!$D15","v":{"v":-5,"d":"-5.00 "}}]
[null,"Iš viso už drabužius",{"$f":"SUBTOTAL(109,Drabužiai[NUMATOMOS IŠLAIDOS])","v":{"v":9490,"d":"9,490.00"}},{"$f":"SUBTOTAL(109,Drabužiai[FAKTINĖS IŠLAIDOS])","v":{"v":9770,"d":"9,770.00"}},{"$f":"SUBTOTAL(109,Drabužiai[DAUGIAU / MAŽIAU NEI NUMATYTOS IŠLAIDOS])","v":{"v":-280,"d":"-280.00 "}}]
[]
["Pokylis žyma yra dešinėje esančiame langelyje.","Pokylis*"]
["Įveskite pokylio išlaidas, neįtraukdami pramogų ir dekoracijų išlaidų, pradėdami nuo langelio dešinėje. Kitas nurodymas yra langelyje A31.","KATEGORIJA","NUMATOMOS IŠLAIDOS","FAKTINĖS IŠLAIDOS","DAUGIAU / MAŽIAU NEI NUMATYTOS IŠLAIDOS"]
[null,"Mokesčiai už patalpas",{"v":200,"d":"200.00"},{"v":150,"d":"150.00"},{"$f":"'Drabužiai-Pokylis-Muzika-Nuotr'!$C20-'Drabužiai-Pokylis-Muzika-Nuotr'!$D20","v":{"v":50,"d":"50.00"}}]
[null,"Stalai ir kėdės",{"v":100,"d":"100.00"},{"v":50,"d":"50.00"},{"$f":"'Drabužiai-Pokylis-Muzika-Nuotr'!$C21-'Drabužiai-Pokylis-Muzika-Nuotr'!$D21","v":{"v":50,"d":"50.00"}}]
[null,"Maistas",{"v":0,"d":"0.00"},{"v":0,"d":"0.00"},{"$f":"'Drabužiai-Pokylis-Muzika-Nuotr'!$C22-'Drabužiai-Pokylis-Muzika-Nuotr'!$D22","v":{"v":0,"d":"0.00"}}]
[null,"Gėrimai",{"v":0,"d":"0.00"},{"v":0,"d":"0.00"},{"$f":"'Drabužiai-Pokylis-Muzika-Nuotr'!$C23-'Drabužiai-Pokylis-Muzika-Nuotr'!$D23","v":{"v":0,"d":"0.00"}}]
[null,"Tekstilė",{"v":0,"d":"0.00"},{"v":0,"d":"0.00"},{"$f":"'Drabužiai-Pokylis-Muzika-Nuotr'!$C24-'Drabužiai-Pokylis-Muzika-Nuotr'!$D24","v":{"v":0,"d":"0.00"}}]
[null,"Tortas",{"v":700,"d":"700.00"},{"v":700,"d":"700.00"},{"$f":"'Drabužiai-Pokylis-Muzika-Nuotr'!$C25-'Drabužiai-Pokylis-Muzika-Nuotr'!$D25","v":{"v":0,"d":"0.00"}}]
[null,"Dovanėlės",{"v":50,"d":"50.00"},{"v":28,"d":"28.00"},{"$f":"'Drabužiai-Pokylis-Muzika-Nuotr'!$C26-'Drabužiai-Pokylis-Muzika-Nuotr'!$D26","v":{"v":22,"d":"22.00"}}]
[null,"Darbuotojai ir arbatpinigiai",{"v":0,"d":"0.00"},{"v":0,"d":"0.00"},{"$f":"'Drabužiai-Pokylis-Muzika-Nuotr'!$C27-'Drabužiai-Pokylis-Muzika-Nuotr'!$D27","v":{"v":0,"d":"0.00"}}]
[null,"Iš viso už pokylį",{"$f":"SUBTOTAL(109,Pokylis[NUMATOMOS IŠLAIDOS])","v":{"v":1050,"d":"1,050.00"}},{"$f":"SUBTOTAL(109,Pokylis[FAKTINĖS IŠLAIDOS])","v":{"v":928,"d":"928.00"}},{"$f":"SUBTOTAL(109,Pokylis[DAUGIAU / MAŽIAU NEI NUMATYTOS IŠLAIDOS])","v":{"v":122,"d":"122.00"}}]
[null,"* Neįtrauktos pramogos ir dekoracijos"]
[]
["Muzika ar Pramogos žyma yra dešinėje esančiame langelyje.","Muzika / pramogos"]
["Įveskite informaciją lentelėje Muzika pradėdami nuo langelio dešinėje. Kitas nurodymas yra langelyje A37.","KATEGORIJA","NUMATOMOS IŠLAIDOS","FAKTINĖS IŠLAIDOS","DAUGIAU / MAŽIAU NEI NUMATYTOS IŠLAIDOS"]
[null,"Ceremonijos muzikantai",{"v":400,"d":"400.00"},{"v":400,"d":"400.00"},{"$f":"'Drabužiai-Pokylis-Muzika-Nuotr'!$C33-'Drabužiai-Pokylis-Muzika-Nuotr'!$D33","v":{"v":0,"d":"0.00"}}]
[null,"Pokylio grupė / didžėjus",{"v":200,"d":"200.00"},{"v":0,"d":"0.00"},{"$f":"'Drabužiai-Pokylis-Muzika-Nuotr'!$C34-'Drabužiai-Pokylis-Muzika-Nuotr'!$D34","v":{"v":200,"d":"200.00"}}]
[null,"Iš viso už muziką / pramogas",{"$f":"SUBTOTAL(109,Muzika[NUMATOMOS IŠLAIDOS])","v":{"v":600,"d":"600.00"}},{"$f":"SUBTOTAL(109,Muzika[FAKTINĖS IŠLAIDOS])","v":{"v":400,"d":"400.00"}},{"$f":"SUBTOTAL(109,Muzika[DAUGIAU / MAŽIAU NEI NUMATYTOS IŠLAIDOS])","v":{"v":200,"d":"200.00"}}]
[]
["Spaudiniai žyma yra dešinėje esančiame langelyje.","Spaudiniai"]
["Įveskite informaciją lentelėje Spaudiniai pradėdami nuo langelio dešinėje. Kitas nurodymas yra langelyje A50.","KATEGORIJA","NUMATOMOS IŠLAIDOS","FAKTINĖS IŠLAIDOS","DAUGIAU / MAŽIAU NEI NUMATYTOS IŠLAIDOS"]
[null,"Kvietimai",{"v":500,"d":"500.00"},{"v":450,"d":"450.00"},{"$f":"'Drabužiai-Pokylis-Muzika-Nuotr'!$C39-'Drabužiai-Pokylis-Muzika-Nuotr'!$D39","v":{"v":50,"d":"50.00"}}]
[null,"Pranešimai",{"v":200,"d":"200.00"},{"v":175,"d":"175.00"},{"$f":"'Drabužiai-Pokylis-Muzika-Nuotr'!$C40-'Drabužiai-Pokylis-Muzika-Nuotr'!$D40","v":{"v":25,"d":"25.00"}}]
[null,"Padėkos kortelės",{"v":100,"d":"100.00"},{"v":100,"d":"100.00"},{"$f":"'Drabužiai-Pokylis-Muzika-Nuotr'!$C41-'Drabužiai-Pokylis-Muzika-Nuotr'!$D41","v":{"v":0,"d":"0.00"}}]
[null,"Asmeniniai kanceliariniai reikmenys",{"v":0,"d":"0.00"},{"v":0,"d":"0.00"},{"$f":"'Drabužiai-Pokylis-Muzika-Nuotr'!$C42-'Drabužiai-Pokylis-Muzika-Nuotr'!$D42","v":{"v":0,"d":"0.00"}}]
[null,"Svečių knyga",{"v":25,"d":"25.00"},{"v":25,"d":"25.00"},{"$f":"'Drabužiai-Pokylis-Muzika-Nuotr'!$C43-'Drabužiai-Pokylis-Muzika-Nuotr'!$D43","v":{"v":0,"d":"0.00"}}]
[null,"Programos",{"v":75,"d":"75.00"},{"v":80,"d":"80.00"},{"$f":"'Drabužiai-Pokylis-Muzika-Nuotr'!$C44-'Drabužiai-Pokylis-Muzika-Nuotr'!$D44","v":{"v":-5,"d":"-5.00 "}}]
[null,"Servetėlės",{"v":35,"d":"35.00"},{"v":40,"d":"40.00"},{"$f":"'Drabužiai-Pokylis-Muzika-Nuotr'!$C45-'Drabužiai-Pokylis-Muzika-Nuotr'!$D45","v":{"v":-5,"d":"-5.00 "}}]
[null,"Degtukų paketėliai",{"v":0,"d":"0.00"},{"v":0,"d":"0.00"},{"$f":"'Drabužiai-Pokylis-Muzika-Nuotr'!$C46-'Drabužiai-Pokylis-Muzika-Nuotr'!$D46","v":{"v":0,"d":"0.00"}}]
[null,"Kaligrafija",{"v":0,"d":"0.00"},{"v":0,"d":"0.00"},{"$f":"'Drabužiai-Pokylis-Muzika-Nuotr'!$C47-'Drabužiai-Pokylis-Muzika-Nuotr'!$D47","v":{"v":0,"d":"0.00"}}]
[null,"Iš viso už spaudinius",{"$f":"SUBTOTAL(109,Spaudiniai[NUMATOMOS IŠLAIDOS])","v":{"v":935,"d":"935.00"}},{"$f":"SUBTOTAL(109,Spaudiniai[FAKTINĖS IŠLAIDOS])","v":{"v":870,"d":"870.00"}},{"$f":"SUBTOTAL(109,Spaudiniai[DAUGIAU / MAŽIAU NEI NUMATYTOS IŠLAIDOS])","v":{"v":65,"d":"65.00"}}]
[]
["Nuotraukos žyma yra dešinėje esančiame langelyje.","Nuotraukos"]
["Įveskite informaciją lentelėje Nuotraukos pradėdami nuo langelio dešinėje.","KATEGORIJA","NUMATOMOS IŠLAIDOS","FAKTINĖS IŠLAIDOS","DAUGIAU / MAŽIAU NEI NUMATYTOS IŠLAIDOS"]
[null,"Oficialios nuotraukos",{"v":1300,"d":"1,300.00"},{"v":1300,"d":"1,300.00"},{"$f":"'Drabužiai-Pokylis-Muzika-Nuotr'!$C52-'Drabužiai-Pokylis-Muzika-Nuotr'!$D52","v":{"v":0,"d":"0.00"}}]
[null,"Papildomos kopijos",{"v":25,"d":"25.00"},{"v":25,"d":"25.00"},{"$f":"'Drabužiai-Pokylis-Muzika-Nuotr'!$C53-'Drabužiai-Pokylis-Muzika-Nuotr'!$D53","v":{"v":0,"d":"0.00"}}]
[null,"Nuotraukų albumai",{"v":100,"d":"100.00"},{"v":100,"d":"100.00"},{"$f":"'Drabužiai-Pokylis-Muzika-Nuotr'!$C54-'Drabužiai-Pokylis-Muzika-Nuotr'!$D54","v":{"v":0,"d":"0.00"}}]
[null,"Filmavimas ir vaizdinė medžiaga",{"v":200,"d":"200.00"},{"v":150,"d":"150.00"},{"$f":"'Drabužiai-Pokylis-Muzika-Nuotr'!$C55-'Drabužiai-Pokylis-Muzika-Nuotr'!$D55","v":{"v":50,"d":"50.00"}}]
[null,"Iš viso už nuotraukas",{"$f":"SUBTOTAL(109,Nuotraukos[NUMATOMOS IŠLAIDOS])","v":{"v":1625,"d":"1,625.00"}},{"$f":"SUBTOTAL(109,Nuotraukos[FAKTINĖS IŠLAIDOS])","v":{"v":1575,"d":"1,575.00"}},{"$f":"SUBTOTAL(109,Nuotraukos[DAUGIAU / MAŽIAU NEI NUMATYTOS IŠLAIDOS])","v":{"v":50,"d":"50.00"}}]

{"sheet":"Dekoracijos-Gėlės-Dovanos-Trans","index":3,"n_rows":48,"n_cols":5,"rows_kept":48,"merged":[[8,1,8,4],[9,1,9,4],[18,1,18,4],[27,1,27,4],[34,1,34,4]]}
["Atitinkamose šio darbalapio lentelėse įveskite numatomos išlaidos ir faktinės išlaidos kiekvienos kategorija išlaidas. Daugiau ar mažiau nei numatytos išlaidos apskaičiuojamos automatiškai. Dekoracijos žyma yra dešinėje esančiame langelyje. Naudingi patarimai, kaip naudoti šį darbalapį, pateikti šio stulpelio langeliuose. Paspauskite rodyklę žemyn, kad pradėtumėte.","Dekoracijos*"]
["Įveskite dekoracijų išlaidas, neįtraukdami gėlių išlaidų, pradėdami nuo langelio dešinėje. Kitas nurodymas yra langelyje A11.","KATEGORIJA","NUMATOMOS IŠLAIDOS","FAKTINĖS IŠLAIDOS","DAUGIAU / MAŽIAU NEI NUMATYTOS IŠLAIDOS"]
[null,"Kėdžių kaspinai",{"v":0,"d":"0.00"},{"v":0,"d":"0.00"},{"$f":"'Dekoracijos-Gėlės-Dovanos-Trans'!$C3-'Dekoracijos-Gėlės-Dovanos-Trans'!$D3","v":{"v":0,"d":"0.00"}}]
[null,"Stalo papuošimai",{"v":300,"d":"300.00"},{"v":320,"d":"320.00"},{"$f":"'Dekoracijos-Gėlės-Dovanos-Trans'!$C4-'Dekoracijos-Gėlės-Dovanos-Trans'!$D4","v":{"v":-20,"d":"-20.00 "}}]
[null,"Žvakės",{"v":100,"d":"100.00"},{"v":75,"d":"75.00"},{"$f":"'Dekoracijos-Gėlės-Dovanos-Trans'!$C5-'Dekoracijos-Gėlės-Dovanos-Trans'!$D5","v":{"v":25,"d":"25.00"}}]
[null,"Apšvietimas",{"v":100,"d":"100.00"},{"v":75,"d":"75.00"},{"$f":"'Dekoracijos-Gėlės-Dovanos-Trans'!$C6-'Dekoracijos-Gėlės-Dovanos-Trans'!$D6","v":{"v":25,"d":"25.00"}}]
[null,"Balionai",{"v":200,"d":"200.00"},{"v":250,"d":"250.00"},{"$f":"'Dekoracijos-Gėlės-Dovanos-Trans'!$C7-'Dekoracijos-Gėlės-Dovanos-Trans'!$D7","v":{"v":-50,"d":"-50.00 "}}]
[null,"Iš viso už dekoracijas",{"$f":"SUBTOTAL(109,Dekoracijos[NUMATOMOS IŠLAIDOS])","v":{"v":700,"d":"700.00"}},{"$f":"SUBTOTAL(109,Dekoracijos[FAKTINĖS IŠLAIDOS])","v":{"v":720,"d":"720.00"}},{"$f":"SUBTOTAL(109,Dekoracijos[DAUGIAU / MAŽIAU NEI NUMATYTOS IŠLAIDOS])","v":{"v":-20,"d":"-20.00 "}}]
[null,"* Gėlės neįtrauktos"]
[]
["Gėlės žyma yra dešinėje esančiame langelyje.","Gėlės"]
["Įveskite informaciją lentelėje Gėlės pradėdami nuo langelio dešinėje. Kitas nurodymas yra langelyje A20.","KATEGORIJA","NUMATOMOS IŠLAIDOS","FAKTINĖS IŠLAIDOS","DAUGIAU / MAŽIAU NEI NUMATYTOS IŠLAIDOS"]
[null,"Puokštės",{"v":500,"d":"500.00"},{"v":450,"d":"450.00"},{"$f":"'Dekoracijos-Gėlės-Dovanos-Trans'!$C13-'Dekoracijos-Gėlės-Dovanos-Trans'!$D13","v":{"v":50,"d":"50.00"}}]
[null,"Butonjerės",{"v":0,"d":"0.00"},{"v":0,"d":"0.00"},{"$f":"'Dekoracijos-Gėlės-Dovanos-Trans'!$C14-'Dekoracijos-Gėlės-Dovanos-Trans'!$D14","v":{"v":0,"d":"0.00"}}]
[null,"Prie krūtinės segamos puokštelės",{"v":0,"d":"0.00"},{"v":0,"d":"0.00"},{"$f":"'Dekoracijos-Gėlės-Dovanos-Trans'!$C15-'Dekoracijos-Gėlės-Dovanos-Trans'!$D15","v":{"v":0,"d":"0.00"}}]
[null,"Ceremonija",{"v":400,"d":"400.00"},{"v":400,"d":"400.00"},{"$f":"'Dekoracijos-Gėlės-Dovanos-Trans'!$C16-'Dekoracijos-Gėlės-Dovanos-Trans'!$D16","v":{"v":0,"d":"0.00"}}]
[null,"Pokylis",{"v":0,"d":"0.00"},{"v":0,"d":"0.00"},{"$f":"'Dekoracijos-Gėlės-Dovanos-Trans'!$C17-'Dekoracijos-Gėlės-Dovanos-Trans'!$D17","v":{"v":0,"d":"0.00"}}]
[null,"Iš viso už gėles",{"$f":"SUBTOTAL(109,Gėlės[NUMATOMOS IŠLAIDOS])","v":{"v":900,"d":"900.00"}},{"$f":"SUBTOTAL(109,Gėlės[FAKTINĖS IŠLAIDOS])","v":{"v":850,"d":"850.00"}},{"$f":"SUBTOTAL(109,Gėlės[DAUGIAU / MAŽIAU NEI NUMATYTOS IŠLAIDOS])","v":{"v":50,"d":"50.00"}}]
[]
["Dovanos žyma yra dešinėje esančiame langelyje.","Dovanos"]
["Įveskite informaciją lentelėje Dovanos pradėdami nuo langelio dešinėje. Kitas nurodymas yra langelyje A29.","KATEGORIJA","NUMATOMOS IŠLAIDOS","FAKTINĖS IŠLAIDOS","DAUGIAU / MAŽIAU NEI NUMATYTOS IŠLAIDOS"]
[null,"Jaunųjų palydovai",{"v":1000,"d":"1,000.00"},{"v":400,"d":"400.00"},{"$f":"'Dekoracijos-Gėlės-Dovanos-Trans'!$C22-'Dekoracijos-Gėlės-Dovanos-Trans'!$D22","v":{"v":600,"d":"600.00"}}]
[null,"1 būsimas sutuoktinis",{"v":150,"d":"150.00"},{"v":200,"d":"200.00"},{"$f":"'Dekoracijos-Gėlės-Dovanos-Trans'!$C23-'Dekoracijos-Gėlės-Dovanos-Trans'!$D23","v":{"v":-50,"d":"-50.00 "}}]
[null,"2 būsimas sutuoktinis",{"v":150,"d":"150.00"},{"v":200,"d":"200.00"},{"$f":"'Dekoracijos-Gėlės-Dovanos-Trans'!$C24-'Dekoracijos-Gėlės-Dovanos-Trans'!$D24","v":{"v":-50,"d":"-50.00 "}}]
[null,"Tėvai",{"v":25,"d":"25.00"},{"v":25,"d":"25.00"},{"$f":"'Dekoracijos-Gėlės-Dovanos-Trans'!$C25-'Dekoracijos-Gėlės-Dovanos-Trans'!$D25","v":{"v":0,"d":"0.00"}}]
[null,"Skaitovai / kiti dalyviai",{"v":20,"d":"20.00"},{"v":250,"d":"250.00"},{"$f":"'Dekoracijos-Gėlės-Dovanos-Trans'!$C26-'Dekoracijos-Gėlės-Dovanos-Trans'!$D26","v":{"v":-230,"d":"-230.00 "}}]
[null,"Iš viso už dovanas",{"$f":"SUBTOTAL(109,Dovanos[NUMATOMOS IŠLAIDOS])","v":{"v":1345,"d":"1,345.00"}},{"$f":"SUBTOTAL(109,Dovanos[FAKTINĖS IŠLAIDOS])","v":{"v":1075,"d":"1,075.00"}},{"$f":"SUBTOTAL(109,Dovanos[DAUGIAU / MAŽIAU NEI NUMATYTOS IŠLAIDOS])","v":{"v":270,"d":"270.00"}}]
[]
["Transportas žyma yra dešinėje esančiame langelyje.","Transportas"]
["Įveskite informaciją lentelėje Transportas pradėdami nuo langelio dešinėje. Kitas nurodymas yra langelyje A36.","KATEGORIJA","NUMATOMOS IŠLAIDOS","FAKTINĖS IŠLAIDOS","DAUGIAU / MAŽIAU NEI NUMATYTOS IŠLAIDOS"]
[null,"Limuzinai / autobusai",{"v":100,"d":"100.00"},{"v":125,"d":"125.00"},{"$f":"'Dekoracijos-Gėlės-Dovanos-Trans'!$C31-'Dekoracijos-Gėlės-Dovanos-Trans'!$D31","v":{"v":-25,"d":"-25.00 "}}]
[null,"Parkavimas",{"v":0,"d":"0.00"},{"v":40,"d":"40.00"},{"$f":"'Dekoracijos-Gėlės-Dovanos-Trans'!$C32-'Dekoracijos-Gėlės-Dovanos-Trans'!$D32","v":{"v":-40,"d":"-40.00 "}}]
[null,"Taksi",{"v":0,"d":"0.00"},{"v":0,"d":"0.00"},{"$f":"'Dekoracijos-Gėlės-Dovanos-Trans'!$C33-'Dekoracijos-Gėlės-Dovanos-Trans'!$D33","v":{"v":0,"d":"0.00"}}]
[null,"Iš viso už transportą",{"$f":"SUBTOTAL(109,Transportas[NUMATOMOS IŠLAIDOS])","v":{"v":100,"d":"100.00"}},{"$f":"SUBTOTAL(109,Transportas[FAKTINĖS IŠLAIDOS])","v":{"v":165,"d":"165.00"}},{"$f":"SUBTOTAL(109,Transportas[DAUGIAU / MAŽIAU NEI NUMATYTOS IŠLAIDOS])","v":{"v":-65,"d":"-65.00 "}}]
[]
["Kitos išlaidos žyma yra dešinėje esančiame langelyje.","Kitos išlaidos"]
["Įveskite informaciją lentelėje Kitos išlaidos pradėdami nuo langelio dešinėje.","KATEGORIJA","NUMATOMOS IŠLAIDOS","FAKTINĖS IŠLAIDOS","DAUGIAU / MAŽIAU NEI NUMATYTOS IŠLAIDOS"]
[null,"Kunigas ar žmogus, kuris atliks sujungimo apeigą",{"v":0,"d":"0.00"},{"v":0,"d":"0.00"},{"$f":"'Dekoracijos-Gėlės-Dovanos-Trans'!$C38-'Dekoracijos-Gėlės-Dovanos-Trans'!$D38","v":{"v":0,"d":"0.00"}}]
[null,"Bažnyčios / ceremonijos vietos mokestis",{"v":40,"d":"40.00"},{"v":55,"d":"55.00"},{"$f":"'Dekoracijos-Gėlės-Dovanos-Trans'!$C39-'Dekoracijos-Gėlės-Dovanos-Trans'!$D39","v":{"v":-15,"d":"-15.00 "}}]
[null,"Vestuvių koordinatorius",{"v":0,"d":"0.00"},{"v":0,"d":"0.00"},{"$f":"'Dekoracijos-Gėlės-Dovanos-Trans'!$C40-'Dekoracijos-Gėlės-Dovanos-Trans'!$D40","v":{"v":0,"d":"0.00"}}]
[null,"Išvakarių vakarienė",{"v":450,"d":"450.00"},{"v":450,"d":"450.00"},{"$f":"'Dekoracijos-Gėlės-Dovanos-Trans'!$C41-'Dekoracijos-Gėlės-Dovanos-Trans'!$D41","v":{"v":0,"d":"0.00"}}]
[null,"Sužadėtuvių vakarėlis",{"v":20,"d":"20.00"},{"v":50,"d":"50.00"},{"$f":"'Dekoracijos-Gėlės-Dovanos-Trans'!$C42-'Dekoracijos-Gėlės-Dovanos-Trans'!$D42","v":{"v":-30,"d":"-30.00 "}}]
[null,"Dovanų vakarėlis",{"v":30,"d":"30.00"},{"v":20,"d":"20.00"},{"$f":"'Dekoracijos-Gėlės-Dovanos-Trans'!$C43-'Dekoracijos-Gėlės-Dovanos-Trans'!$D43","v":{"v":10,"d":"10.00"}}]
[null,"Grožio procedūros",{"v":45,"d":"45.00"},{"v":46,"d":"46.00"},{"$f":"'Dekoracijos-Gėlės-Dovanos-Trans'!$C44-'Dekoracijos-Gėlės-Dovanos-Trans'!$D44","v":{"v":-1,"d":"-1.00 "}}]
[null,"Mergvakaris / bernvakaris",{"v":0,"d":"0.00"},{"v":0,"d":"0.00"},{"$f":"'Dekoracijos-Gėlės-Dovanos-Trans'!$C45-'Dekoracijos-Gėlės-Dovanos-Trans'!$D45","v":{"v":0,"d":"0.00"}}]
[null,"Vėlyvieji pusryčiai",{"v":300,"d":"300.00"},{"v":400,"d":"400.00"},{"$f":"'Dekoracijos-Gėlės-Dovanos-Trans'!$C46-'Dekoracijos-Gėlės-Dovanos-Trans'!$D46","v":{"v":-100,"d":"-100.00 "}}]
[null,"Viešbučio kambariai",{"v":0,"d":"0.00"},{"v":0,"d":"0.00"},{"$f":"'Dekoracijos-Gėlės-Dovanos-Trans'!$C47-'Dekoracijos-Gėlės-Dovanos-Trans'!$D47","v":{"v":0,"d":"0.00"}}]
[null,"Iš viso už kitas išlaidas",{"$f":"SUBTOTAL(109,KitosIšlaidos[NUMATOMOS IŠLAIDOS])","v":{"v":885,"d":"885.00"}},{"$f":"SUBTOTAL(109,KitosIšlaidos[FAKTINĖS IŠLAIDOS])","v":{"v":1021,"d":"1,021.00"}},{"$f":"SUBTOTAL(109,KitosIšlaidos[DAUGIAU / MAŽIAU NEI NUMATYTOS IŠLAIDOS])","v":{"v":-136,"d":"-136.00 "}}]